bitfinex-derivatives/quotes_BTCF0:USTF0_20250402
["timestamp","ask_amount","ask_price","bid_price","bid_amount"]
[1743554659969,0.98781521,85079.0,85078.0,0.05827015]
[1743554660265,0.98781521,85079.0,85078.0,0.17580695]
[1743554660460,0.98781521,85079.0,85078.0,0.17640695]
[1743554661267,0.75997981,85079.0,85078.0,0.17640695]
[1743554661967,0.87497981,85079.0,85078.0,0.23200695]
[1743554662364,0.85982896,85079.0,85078.0,0.23200695]
[1743554662963,0.97736436,85079.0,85078.0,0.23200695]
[1743554664367,0.32444202,85079.0,85078.0,0.23200695]
[1743554664972,0.32427839,85079.0,85078.0,0.23200695]
[1743554665176,0.44181379,85079.0,85078.0,0.23200695]
[1743554665374,0.32427839,85079.0,85078.0,0.23200695]
[1743554665569,0.44181379,85079.0,85078.0,0.00107015]
[1743554665874,0.44181379,85079.0,85078.0,0.11800695]
[1743554666068,0.4418106,85079.0,85078.0,0.11860695]
[1743554666675,0.3242752,85079.0,85078.0,0.11860695]
[1743554667973,0.3242752,85079.0,85078.0,0.17270695]
[1743554668167,0.3242752,85079.0,85078.0,0.28500695]
[1743554668975,0.32426951,85079.0,85078.0,0.23090695]
[1743554669164,0.44180491,85079.0,85078.0,0.23090695]
[1743554670274,0.44180491,85079.0,85078.0,0.17290695]
[1743554670872,0.44182128,85079.0,85078.0,0.17290695]
[1743554675476,0.598147,85079.0,85078.0,0.17290695]
[1743554675877,0.4806116,85079.0,85078.0,0.17290695]
[1743554676374,0.43278044,85079.0,85078.0,0.17290695]
[1743554676779,0.55031584,85079.0,85078.0,0.17290695]
[1743554677169,0.43278044,85079.0,85078.0,0.17290695]
[1743554677665,0.4239116,85079.0,85078.0,0.17290695]
[1743554678276,0.541447,85079.0,85078.0,0.17290695]
[1743554678478,0.4239116,85079.0,85078.0,0.17290695]
[1743554678680,0.25858799,85079.0,85078.0,0.17290695]
[1743554678897,0.37612339,85079.0,85078.0,0.17290695]
[1743554679382,0.25858799,85079.0,85078.0,0.17290695]
[1743554679873,0.31488799,85079.0,85078.0,0.17290695]
[1743554680068,0.43242339,85079.0,85078.0,0.05537015]
[1743554680274,0.43242339,85079.0,85078.0,0.17230695]
[1743554680579,0.43242339,85079.0,85078.0,0.17290695]
[1743554680967,0.79301956,85079.0,85078.0,0.05537015]
[1743554681169,0.79301956,85079.0,85078.0,0.05477015]
[1743554683075,0.79305777,85079.0,85078.0,0.05477015]
[1743554683380,0.79305777,85079.0,85078.0,0.17230695]
[1743554683681,0.79305777,85079.0,85078.0,0.17290695]
[1743554684474,0.79305777,85079.0,85078.0,0.05537015]
[1743554684781,0.79305777,85079.0,85078.0,0.05477015]
[1743554685079,0.79304677,85079.0,85078.0,0.05477015]
[1743554685580,0.78179653,85079.0,85078.0,0.05477015]
[1743554685777,0.79304632,85079.0,85078.0,0.05477015]
[1743554687479,0.79305606,85079.0,85078.0,0.05477015]
[1743554688284,1.15385606,85079.0,85078.0,0.05477015]
[1743554689075,1.31699985,85079.0,85078.0,0.05477015]
[1743554689571,1.19946445,85079.0,85078.0,0.17230695]
[1743554689777,0.78236445,85079.0,85078.0,0.17290695]
[1743554690173,0.89989985,85079.0,85078.0,0.17290695]
[1743554690782,0.89989985,85079.0,85078.0,0.05537015]
[1743554690970,0.89989985,85079.0,85078.0,0.05477015]
[1743554691375,0.89989985,85079.0,85078.0,0.05537015]
[1743554693487,0.94757802,85079.0,85078.0,0.05537015]
[1743554698691,0.58677802,85079.0,85078.0,0.05537015]
[1743554698886,0.94757802,85079.0,85078.0,0.05537015]
[1743554700882,0.94745185,85079.0,85078.0,0.05477015]
[1743554701084,0.94742555,85079.0,85078.0,0.17230695]
[1743554701492,0.94742555,85079.0,85078.0,0.17298695]
[1743554701493,0.73660359,85079.0,85078.0,0.17298695]
[1743554702890,0.73656852,85079.0,85078.0,0.17298695]
[1743554704185,0.61903312,85079.0,85078.0,0.17298695]
[1743554704384,0.56073312,85079.0,85078.0,0.23048695]
[1743554704583,0.41971463,85079.0,85078.0,0.23048695]
[1743554704786,0.43078912,85079.0,85078.0,0.23048695]
[1743554704986,0.05891463,85079.0,85078.0,0.23048695]
[1743554705290,0.21557242,85079.0,85078.0,0.23048695]
[1743554705487,0.21633242,85079.0,85078.0,0.23048695]
[1743554707081,0.24563708,85090.0,85089.0,0.1175216]
[1743554707282,0.24639708,85090.0,85089.0,0.1181216]
[1743554707592,0.00017619,85103.0,85095.0,0.0587565]
[1743554707780,0.00064,85102.0,85101.0,0.117505]
[1743554707980,0.00017619,85103.0,85102.0,0.1175037]
[1743554708195,0.0591,85118.0,85108.0,0.1174954]
[1743554708385,0.25550208,85119.0,85108.0,0.1174954]
[1743554708584,0.1174836,85117.0,85108.0,0.1174954]
[1743554708784,0.0614,85118.0,85108.0,0.1174954]
[1743554708985,0.1788823,85118.0,85108.0,0.2369954]
[1743554709196,0.34466794,85109.0,85108.0,0.2376354]
[1743554709382,0.34398794,85109.0,85108.0,0.2369954]
[1743554710087,0.34898794,85109.0,85108.0,0.2369954]
[1743554710796,0.35398794,85109.0,85108.0,0.2369954]
[1743554710997,0.01,85109.0,85108.0,0.2369954]
[1743554711195,0.0001763,85117.0,85114.0,0.0587435]
[1743554711391,0.0001763,85117.0,85116.0,0.1174843]
[1743554711595,0.1149,85127.0,85120.0,0.0587392]
[1743554711789,0.0574,85127.0,85126.0,0.1174705]
[1743554712289,0.0575,85132.0,85131.0,0.1174636]
[1743554712496,0.1149,85132.0,85131.0,0.1174636]
[1743554713091,0.24124966,85132.0,85131.0,0.1174636]
[1743554713289,0.0574,85132.0,85131.0,0.1174636]
[1743554713497,0.01200572,85134.0,85132.0,0.1174622]
[1743554713692,0.01200572,85134.0,85132.0,0.2350622]
[1743554713902,0.36144,85133.0,85132.0,0.2357022]
[1743554714902,0.36344,85133.0,85132.0,0.2357022]
[1743554715103,0.00264,85133.0,85132.0,0.2357022]
[1743554715496,0.00364,85133.0,85132.0,0.2357022]
[1743554716997,0.10536035,85135.0,85134.0,0.1174595]
[1743554717197,0.13994714,85139.0,85138.0,0.117454]
[1743554717503,0.14086714,85139.0,85138.0,0.118374]
[1743554717691,0.3608,85148.0,85141.0,0.0587244]
[1743554717885,0.00120001,85148.0,85142.0,0.1162]
[1743554718196,0.3608,85150.0,85149.0,0.1174388]
[1743554718394,0.36192001,85150.0,85149.0,0.1185588]
[1743554718785,0.05692001,85150.0,85149.0,0.1185588]
[1743554718990,0.11722001,85150.0,85149.0,0.1750588]
[1743554719594,0.23965741,85150.0,85149.0,0.1750588]
[1743554719797,0.12222001,85150.0,85149.0,0.1750588]
[1743554721492,0.12422001,85150.0,85149.0,0.1750588]
[1743554729601,0.18272001,85150.0,85149.0,0.1750588]
[1743554755735,0.18072001,85150.0,85149.0,0.1750588]
[1743554756030,0.18472001,85150.0,85149.0,0.1750588]
[1743554757126,0.17972001,85150.0,85149.0,0.1750588]
[1743554757327,0.18472001,85150.0,85149.0,0.1750588]
[1743554763533,0.20896443,85155.0,85149.0,0.41842]
[1743554763732,0.21044443,85155.0,85154.0,0.1174319]
[1743554763927,0.06107619,85158.0,85154.0,0.1174319]
[1743554763928,0.07776,85178.0,85160.0,0.0587115]
[1743554764139,0.1227,85166.0,85165.0,0.1174167]
[1743554764438,0.1227,85166.0,85165.0,0.1192967]
[1743554765033,0.1227,85166.0,85165.0,0.1802967]
[1743554765531,0.1317,85166.0,85165.0,0.1802967]
[1743554766337,0.2491153,85166.0,85165.0,0.00188]
[1743554766540,0.1174181,85164.0,85163.0,0.1174182]
[1743554766845,0.1174181,85164.0,85163.0,0.1193782]
[1743554771047,0.24116665,85164.0,85163.0,0.00196]
[1743554771742,0.31892665,85164.0,85163.0,0.00196]
[1743554772149,0.24116665,85164.0,85163.0,0.1193795]
[1743554772345,0.12374855,85164.0,85163.0,0.1193795]
[1743554772738,0.24116665,85164.0,85163.0,0.1193795]
[1743554775246,0.1174181,85164.0,85163.0,0.1193795]
[1743554778345,0.1174181,85164.0,85163.0,0.00196]
[1743554778742,0.1174181,85164.0,85163.0,0.1193795]
[1743554780351,0.1174181,85164.0,85163.0,0.00196]
[1743554780543,0.1174181,85164.0,85163.0,0.1193795]
[1743554789356,0.1174181,85164.0,85163.0,0.00196]
[1743554789555,0.1174347,85152.0,85151.0,0.179036]
[1743554789758,0.1174347,85152.0,85151.0,0.180316]
[1743554789960,0.1174347,85152.0,85140.0,0.3608]
[1743554789961,0.64935224,85152.0,85140.0,0.3608]
[1743554790256,0.64935224,85152.0,85123.0,0.0587367]
[1743554790257,0.1174526,85139.0,85123.0,0.0587367]
[1743554790463,0.5559726,85139.0,85138.0,0.00072]
[1743554790756,0.1174553,85137.0,85136.0,0.41751295]
[1743554790949,0.1181353,85137.0,85136.0,0.41815295]
[1743554791258,0.25051015,85137.0,85136.0,0.41815295]
[1743554791653,0.32823015,85137.0,85136.0,0.41815295]
[1743554793448,0.33223015,85137.0,85136.0,0.41815295]
[1743554793649,0.33223015,85137.0,85136.0,0.00064]
[1743554793858,0.1174664,85129.0,85128.0,0.00017619]
[1743554794059,0.1181864,85129.0,85128.0,0.00089619]
[1743554794255,0.1181864,85129.0,85128.0,0.00017619]
[1743554794760,0.24171344,85129.0,85128.0,0.00017619]
[1743554795151,0.43991344,85129.0,85128.0,0.00017619]
[1743554795356,0.24471344,85129.0,85128.0,0.00017619]
[1743554796865,0.24771344,85129.0,85128.0,0.00017619]
[1743554797363,0.33409201,85129.0,85128.0,0.00017619]
[1743554797764,0.33409201,85129.0,85128.0,0.00081619]
[1743554797967,0.33409201,85129.0,85128.0,0.06131619]
[1743554798456,0.33409201,85129.0,85128.0,0.00017619]
[1743554802253,0.1174829,85117.0,85111.0,0.04193699]
[1743554802459,0.1958829,85117.0,85116.0,0.36144]
[1743554802678,0.32931841,85117.0,85116.0,0.36144]
[1743554806365,0.34106559,85117.0,85116.0,0.00064]
[1743554807072,0.34106559,85117.0,85116.0,1e-07]
[1743554807268,0.1175119,85096.0,85095.0,0.0615]
[1743554807455,0.1175119,85096.0,85088.0,0.1736224]
[1743554807456,0.1175257,85086.0,85085.0,0.0611]
[1743554807764,0.24947376,85086.0,85085.0,0.0006]
[1743554807964,0.24947376,85086.0,85079.0,0.0561]
[1743554807965,0.1175285,85084.0,85083.0,0.1175293]
[1743554808171,0.117534,85080.0,85079.0,0.0561]
[1743554808360,0.118334,85080.0,85079.0,0.0006]
[1743554808760,0.118334,85080.0,85079.0,0.0602]
[1743554809163,0.176534,85080.0,85079.0,0.0602]
[1743554809370,0.30273637,85080.0,85079.0,0.0602]
[1743554810563,0.31165256,85080.0,85079.0,0.0602]
[1743554812069,0.31165256,85080.0,85079.0,0.1777354]
[1743554812276,0.31165256,85080.0,85079.0,0.0602]
[1743554812574,0.38941256,85080.0,85079.0,0.0602]
[1743554812874,0.38941256,85080.0,85079.0,0.1777354]
[1743554813571,0.13591856,85080.0,85079.0,0.1777354]
[1743554813866,0.12700237,85080.0,85079.0,0.1777354]
[1743554814071,0.12620237,85080.0,85079.0,0.1777354]
[1743554814271,0.24449637,85080.0,85079.0,0.1777354]
[1743554814467,0.118294,85080.0,85079.0,0.1777354]
[1743554814774,0.24438282,85080.0,85079.0,0.1777354]
[1743554821371,0.24438282,85080.0,85079.0,0.5385354]
[1743554822276,0.12684882,85080.0,85079.0,0.5385354]
[1743554822480,0.24438282,85080.0,85079.0,0.5385354]
[1743554823979,0.12684882,85080.0,85079.0,0.5385354]
[1743554824177,0.00076,85080.0,85079.0,0.5385354]
[1743554824683,0.0001763,85088.0,85087.0,0.1175244]
[1743554824983,0.1176993,85088.0,85087.0,0.1175244]
[1743554825196,0.24394205,85088.0,85087.0,0.1175244]
[1743554825483,0.12641905,85088.0,85087.0,0.1771244]
[1743554825784,0.24394205,85088.0,85087.0,0.1771244]
[1743554825970,0.25266228,85088.0,85087.0,0.0596]
[1743554826176,0.25666228,85088.0,85087.0,0.0596]
[1743554826782,0.25666228,85088.0,85087.0,0.1771244]
[1743554828487,0.25666228,85088.0,85087.0,0.2340244]
[1743554829579,0.24794205,85088.0,85087.0,0.2340244]
[1743554829876,0.24866205,85088.0,85087.0,0.2346244]
[1743554830780,0.30876205,85088.0,85087.0,0.2346244]
[1743554833084,0.36806205,85088.0,85087.0,0.2346244]
[1743554833286,0.37861282,85088.0,85087.0,0.2346244]
[1743554833682,0.26108982,85088.0,85087.0,0.2346244]
[1743554833887,0.37861282,85088.0,85087.0,0.2346244]
[1743554834073,0.36806205,85088.0,85087.0,0.2346244]
[1743554834879,0.30876205,85088.0,85087.0,0.2346244]
[1743554836183,0.31931603,85088.0,85087.0,0.2346244]
[1743554836588,0.31931603,85088.0,85087.0,0.1777244]
[1743554837190,0.31931574,85088.0,85087.0,0.1777244]
[1743554837689,0.31931574,85088.0,85087.0,0.2342244]
[1743554838087,0.30876205,85088.0,85087.0,0.2342244]
[1743554838385,0.13113905,85088.0,85087.0,0.5950244]
[1743554838587,0.0041763,85088.0,85087.0,0.5950244]
[1743554839485,0.0048963,85088.0,85087.0,0.5950244]
[1743554839686,0.0008963,85088.0,85087.0,0.5950244]
[1743554839892,0.0018963,85088.0,85087.0,0.5950244]
[1743554841289,0.0011763,85088.0,85087.0,0.5950244]
[1743554841494,0.0021763,85088.0,85087.0,0.5950244]
[1743554841680,0.17512982,85097.0,85093.0,0.0587578]
[1743554841887,0.17584982,85097.0,85096.0,0.4783119]
[1743554842088,0.17512982,85097.0,85096.0,0.4789119]
[1743554842786,0.17584982,85097.0,85096.0,0.4789119]
[1743554842983,0.14132754,85097.0,85096.0,0.4789119]
[1743554843184,0.14232754,85097.0,85096.0,0.4789119]
[1743554843590,0.14332754,85097.0,85096.0,0.4789119]
[1743554845288,0.38527957,85097.0,85096.0,0.0006]
[1743554845488,0.1175216,85089.0,85087.0,0.3608]
[1743554845702,0.1175327,85081.0,85080.0,0.3608]
[1743554846001,0.1175327,85081.0,85080.0,0.478934]
[1743554846501,0.1182527,85081.0,85080.0,0.536034]
[1743554846697,0.11732,85081.0,85080.0,0.536034]
[1743554847204,0.2348527,85081.0,85080.0,0.592034]
[1743554848001,0.2348527,85081.0,85080.0,0.536034]
[1743554848301,0.2348527,85081.0,85080.0,0.538034]
[1743554848706,0.36294258,85081.0,85080.0,0.480934]
[1743554849206,0.36294258,85081.0,85080.0,0.478934]
[1743554850598,0.36294258,85081.0,85080.0,0.535034]
[1743554851692,0.36294258,85081.0,85080.0,0.4175]
[1743554851892,0.36294258,85081.0,85080.0,0.535034]
[1743554852903,0.2348527,85081.0,85080.0,0.535034]
[1743554853799,0.06042,85081.0,85080.0,0.595434]
[1743554854002,0.0597,85081.0,85080.0,0.595434]
[1743554854297,0.06042,85081.0,85080.0,0.595434]
[1743554855096,0.11862,85081.0,85080.0,0.595434]
[1743554858004,0.11866,85081.0,85080.0,0.595434]
[1743554860703,0.2361927,85081.0,85080.0,0.595434]
[1743554861902,0.11866,85081.0,85080.0,0.595434]
[1743554862101,0.10535901,85084.0,85083.0,0.1175299]
[1743554862403,0.57172943,85114.0,85083.0,0.1175299]
[1743554862404,0.0614,85091.0,85090.0,0.1175202]
[1743554862608,0.1831,85102.0,85101.0,0.117505]
[1743554862796,0.1831,85102.0,85101.0,0.478985]
[1743554863113,0.18382,85102.0,85101.0,0.478985]
[1743554863603,0.12222,85102.0,85101.0,0.478985]
[1743554863807,0.00072,85102.0,85101.0,0.541685]
[1743554864009,0.17512982,85103.0,85102.0,0.1175037]
[1743554864213,0.17512982,85103.0,85102.0,0.1181837]
[1743554864714,0.17580982,85103.0,85102.0,0.1181837]
[1743554864902,0.23900982,85103.0,85102.0,0.1817837]
[1743554865704,0.06588,85103.0,85102.0,0.1817837]
[1743554865903,0.0652,85103.0,85102.0,0.1817837]
[1743554866300,0.0632,85103.0,85102.0,0.1817837]
[1743554866501,0.0652,85103.0,85102.0,0.1817837]
[1743554867001,0.06588,85103.0,85102.0,0.1817837]
[1743554867205,0.0672,85103.0,85102.0,0.1817837]
[1743554868009,0.06792,85103.0,85102.0,0.1817837]
[1743554870214,0.0672,85103.0,85102.0,0.1817837]
[1743554870600,0.06780001,85103.0,85102.0,0.1817837]
[1743554871411,0.12700001,85103.0,85102.0,0.1817837]
[1743554871611,0.12900001,85103.0,85102.0,0.1817837]
[1743554874213,0.1284,85103.0,85102.0,0.1817837]
[1743554874414,0.80903476,85103.0,85102.0,0.00068]
[1743554874616,0.1175147,85094.0,85093.0,0.0001763]
[1743554874801,0.1175147,85094.0,85093.0,0.0008563]
[1743554875007,0.24276716,85094.0,85093.0,0.0008563]
[1743554875408,0.36516716,85094.0,85093.0,0.0008563]
[1743554875814,0.36516716,85094.0,85093.0,0.0018563]
[1743554876910,0.36516716,85094.0,85093.0,0.0008563]
[1743554878820,0.37116716,85094.0,85093.0,0.0008563]
[1743554879213,0.37116716,85094.0,85093.0,0.1183724]
[1743554879610,0.37116716,85094.0,85093.0,0.0008563]
[1743554881011,0.37116716,85094.0,85093.0,0.1183724]
[1743554881215,0.25365246,85094.0,85093.0,0.1183724]
[1743554881619,0.00668,85094.0,85093.0,0.1183724]
[1743554881925,0.006,85094.0,85093.0,0.1809724]
[1743554882622,0.005,85094.0,85093.0,0.1809724]
[1743554883122,0.002,85094.0,85093.0,0.1809724]
[1743554883419,0.004,85094.0,85093.0,0.1809724]
[1743554884914,0.00468,85094.0,85093.0,0.1809724]
[1743554887817,0.004,85094.0,85093.0,0.1809724]
[1743554889026,0.004,85094.0,85093.0,0.5417724]
[1743554889225,0.0551,85103.0,85102.0,0.1175037]
[1743554889525,0.05582,85103.0,85102.0,0.4790237]
[1743554890025,0.0551,85103.0,85102.0,0.4790237]
[1743554890221,0.0551,85103.0,85102.0,0.5369237]
[1743554890422,0.11390001,85103.0,85102.0,0.5369237]
[1743554890830,0.23140231,85103.0,85102.0,0.5369237]
[1743554891230,0.23240231,85103.0,85102.0,0.5369237]
[1743554891429,0.11690001,85103.0,85102.0,0.5369237]
[1743554895123,0.36451179,85103.0,85102.0,0.00072]
[1743554895324,0.1175147,85094.0,85091.0,0.28157401]
[1743554895528,0.1960747,85094.0,85093.0,0.3616163]
[1743554895730,0.32951345,85094.0,85093.0,0.3616163]
[1743554896229,0.43831345,85094.0,85093.0,0.3616163]
[1743554897620,0.43931345,85094.0,85093.0,0.3616163]
[1743554898233,0.44031345,85094.0,85093.0,0.3616163]
[1743554898532,0.43931345,85094.0,85093.0,0.3616163]
[1743554898727,0.44031345,85094.0,85093.0,0.3616163]
[1743554898925,0.44131345,85094.0,85093.0,0.0008163]
[1743554899135,0.44131345,85094.0,85093.0,0.3609763]
[1743554899320,0.44131345,85094.0,85093.0,0.3617363]
[1743554901435,0.44131345,85094.0,85093.0,0.0009363]
[1743554901636,0.44131345,85094.0,85093.0,0.3617363]
[1743554902232,0.36355345,85094.0,85093.0,0.3617363]
[1743554902634,0.41885345,85094.0,85093.0,0.3617363]
[1743554904741,0.41885345,85094.0,85093.0,0.0009363]
[1743554904943,0.41885345,85094.0,85093.0,0.3617363]
[1743554905542,0.42941443,85094.0,85093.0,0.3617363]
[1743554906733,0.43829999,85094.0,85093.0,0.3617363]
[1743554906952,0.51605999,85094.0,85093.0,0.3617363]
[1743554909942,0.71125999,85094.0,85093.0,0.3617363]
[1743554911945,0.71125999,85094.0,85093.0,0.0009363]
[1743554913047,0.1175354,85079.0,85078.0,0.36127015]
[1743554913245,0.1962954,85079.0,85078.0,0.36187015]
[1743554913453,0.33170453,85079.0,85078.0,0.36187015]
[1743554913949,0.44100453,85079.0,85078.0,0.36187015]
[1743554914256,0.44100453,85079.0,85078.0,0.36287015]
[1743554916136,0.45245109,85079.0,85078.0,0.36287015]
[1743554918448,0.19170913,85079.0,85078.0,0.48040695]
[1743554918748,0.12752357,85079.0,85078.0,0.48040695]
[1743554919138,0.24505897,85079.0,85078.0,0.58710695]
[1743554919338,0.29415897,85079.0,85078.0,0.58710695]
[1743554920249,0.34425897,85079.0,85078.0,0.58710695]
[1743554921041,0.24505897,85079.0,85078.0,0.58710695]
[1743554922550,0.24505897,85079.0,85078.0,0.22630695]
[1743554927754,0.12752357,85079.0,85078.0,0.22630695]
[1743554928254,0.24505897,85079.0,85078.0,0.22630695]
[1743554932853,0.29405897,85079.0,85078.0,0.58710695]
[1743554933553,0.30314108,85079.0,85078.0,0.58710695]
[1743554933755,0.35134108,85079.0,85078.0,0.58710695]
[1743554935442,0.35134108,85079.0,85078.0,0.53060695]
[1743554936549,0.35134108,85079.0,85078.0,0.16980695]
[1743554936748,0.35134108,85079.0,85078.0,0.53060695]
[1743554941652,0.35134108,85079.0,85078.0,0.36287015]
[1743554942358,0.36210254,85079.0,85078.0,0.36287015]
[1743554942863,0.36230493,85079.0,85078.0,0.36287015]
[1743554943056,0.36230493,85079.0,85078.0,0.48040695]
[1743554943363,0.36230493,85079.0,85078.0,0.36287015]
[1743554943557,0.36230791,85079.0,85078.0,0.36287015]
[1743554943865,0.37783238,85079.0,85078.0,0.36287015]
[1743554944459,0.26029698,85079.0,85078.0,0.48040695]
[1743554944659,0.24933015,85079.0,85078.0,0.48040695]
[1743554944959,0.36686555,85079.0,85078.0,0.48040695]
[1743554947364,0.36686555,85079.0,85078.0,0.36287015]
[1743554948865,0.37785775,85079.0,85078.0,0.36287015]
[1743554949456,0.37785779,85079.0,85078.0,0.36287015]
[1743554949957,0.37785779,85079.0,85078.0,0.41077015]
[1743554950162,0.37786345,85079.0,85078.0,0.36287015]
[1743554950763,0.37786345,85079.0,85078.0,0.48040695]
[1743554951358,0.37786345,85079.0,85078.0,0.36287015]
[1743554952162,0.3779654,85079.0,85078.0,0.48040695]
[1743554952971,0.3779654,85079.0,85078.0,0.52760695]
[1743554953261,0.4277654,85079.0,85078.0,0.52760695]
[1743554953465,0.4277654,85079.0,85078.0,0.00207015]
[1743554953668,0.7885654,85079.0,85078.0,0.00207015]
[1743554953859,0.43641763,85079.0,85078.0,0.00147015]
[1743554955068,0.61154745,85079.0,85078.0,0.00147015]
[1743554955571,0.43558781,85079.0,85078.0,0.11900695]
[1743554955869,0.55312321,85079.0,85078.0,0.11968695]
[1743554956260,0.55312321,85079.0,85078.0,0.21778695]
[1743554956460,0.55312321,85079.0,85078.0,0.10025015]
[1743554957169,0.55312321,85079.0,85078.0,0.21778695]
[1743554957366,0.55312321,85079.0,85078.0,0.10025015]
[1743554957668,0.55303207,85079.0,85078.0,0.04955015]
[1743554959170,0.91383207,85079.0,85078.0,0.00215015]
[1743554959370,0.91383207,85079.0,85078.0,0.00147015]
[1743554959555,0.1175451,85072.0,85070.0,0.0001763]
[1743554959754,0.1295018,85072.0,85071.0,0.32971024]
[1743554959970,0.1295018,85072.0,85071.0,0.36066374]
[1743554960279,0.15410838,85072.0,85071.0,0.47821024]
[1743554960462,0.02552658,85072.0,85071.0,0.47821024]
[1743554960660,0.02460658,85072.0,85071.0,0.47821024]
[1743554960971,0.02460658,85072.0,85071.0,0.2690065]
[1743554961170,0.20091478,85077.0,85076.0,0.1175396]
[1743554961361,0.20183478,85077.0,85076.0,0.1181396]
[1743554961673,0.08429578,85077.0,85076.0,0.1181396]
[1743554962170,0.08429578,85077.0,85076.0,0.2178396]
[1743554962367,0.08429578,85077.0,85076.0,0.2198396]
[1743554964071,0.02552658,85077.0,85076.0,0.2198396]
[1743554964278,0.02460658,85077.0,85076.0,0.2198396]
[1743554964478,0.02552658,85077.0,85076.0,0.2198396]
[1743554964776,0.00908211,85077.0,85076.0,0.2198396]
[1743554964960,0.17512982,85090.0,85086.0,0.1175257]
[1743554965157,0.21092943,85100.0,85099.0,0.1175078]
[1743554965362,0.07968,85113.0,85102.0,0.1175037]
[1743554965580,0.1174945,85109.0,85102.0,0.1181437]
[1743554965880,0.1174968,85107.0,85102.0,0.1181437]
[1743554966069,0.102,85112.0,85102.0,0.2177437]
[1743554966371,0.31341889,85118.0,85117.0,0.1174829]
[1743554966559,0.31409889,85118.0,85117.0,0.4788829]
[1743554967068,0.43158049,85118.0,85117.0,0.4788829]
[1743554967268,0.48208049,85118.0,85117.0,0.5741829]
[1743554967571,0.43158049,85118.0,85117.0,0.5741829]
[1743554968074,0.43358049,85118.0,85117.0,0.5741829]
[1743554968274,0.48408049,85118.0,85117.0,0.5741829]
[1743554968773,0.1211616,85118.0,85117.0,0.5741829]
[1743554969171,0.00364,85118.0,85117.0,0.5741829]
[1743554969375,0.003,85118.0,85117.0,0.5741829]
[1743554969879,0.1204816,85118.0,85117.0,0.5741829]
[1743554970781,0.003,85118.0,85117.0,0.5741829]
[1743554971777,0.1204816,85118.0,85117.0,0.5741829]
[1743554971974,0.00364,85118.0,85117.0,0.5741829]
[1743554972479,0.1204816,85118.0,85117.0,0.5741829]
[1743554972675,0.2193216,85118.0,85117.0,0.5741829]
[1743554972879,0.2193216,85118.0,85117.0,0.4788829]
[1743554974973,0.35035976,85118.0,85117.0,0.4788829]
[1743554976886,0.35035976,85118.0,85117.0,0.3614]
[1743554977879,0.35035976,85118.0,85117.0,0.4092]
[1743554978283,0.35035976,85118.0,85117.0,0.5266829]
[1743554978673,0.35035976,85118.0,85117.0,0.3614]
[1743554979486,0.35035976,85118.0,85117.0,0.4788829]
[1743554987882,0.35937255,85118.0,85117.0,0.4788829]
[1743554989589,0.117505,85101.0,85100.0,0.3608]
[1743554989885,0.20627779,85101.0,85100.0,0.3614]
[1743554990079,0.3293423,85101.0,85100.0,0.362]
[1743554990281,0.3293423,85101.0,85100.0,0.3614]
[1743554990593,0.4260423,85101.0,85100.0,0.3614]
[1743554991689,0.4260423,85101.0,85100.0,0.3634]
[1743554991991,0.4260423,85101.0,85100.0,0.0026]
[1743554992385,0.43792099,85101.0,85100.0,0.0026]
[1743554992586,0.4489095,85101.0,85100.0,0.0026]
[1743554992788,0.4489095,85101.0,85100.0,0.0036]
[1743554993595,0.4509095,85101.0,85100.0,0.0016]
[1743554993896,0.4519095,85101.0,85100.0,0.0006]
[1743554995696,0.44092099,85101.0,85100.0,0.0006]
[1743554995892,0.4519186,85101.0,85100.0,0.0006]
[1743554997809,0.45191878,85101.0,85100.0,0.0006]
[1743554998786,0.44092099,85101.0,85100.0,0.0006]
[1743555003602,0.1359173,85101.0,85100.0,0.1181064]
[1743555003902,0.2534223,85101.0,85100.0,0.1181064]
[1743555004291,0.2534223,85101.0,85100.0,0.0507]
[1743555004497,0.31319569,85101.0,85100.0,0.0507]
[1743555004698,0.36199569,85101.0,85100.0,0.0507]
[1743555004904,0.37694075,85101.0,85100.0,0.1682064]
[1743555005204,0.39218431,85101.0,85100.0,0.1682064]
[1743555005386,0.39218396,85101.0,85100.0,0.1682064]
[1743555006390,0.39218396,85101.0,85100.0,0.0507]
[1743555006585,0.39218396,85101.0,85100.0,0.04945]
[1743555006786,0.38061057,85101.0,85100.0,0.05005]
[1743555007702,0.38061057,85101.0,85100.0,0.1675564]
[1743555007903,0.38061057,85101.0,85100.0,0.2170564]
[1743555008401,0.38061057,85101.0,85100.0,0.09955]
[1743555008795,0.38061057,85101.0,85100.0,0.2170564]
[1743555008994,0.36566586,85101.0,85100.0,0.2170564]
[1743555010798,0.36566586,85101.0,85100.0,0.09955]
[1743555013499,0.47078352,85101.0,85100.0,0.09955]
[1743555013707,0.47078352,85101.0,85100.0,0.05005]
[1743555013893,0.49699287,85101.0,85100.0,0.0006]
[1743555015794,0.1175106,85097.0,85096.0,0.0452]
[1743555015995,0.13363721,85097.0,85096.0,0.0458]
[1743555016191,0.25756946,85097.0,85096.0,0.0458]
[1743555016396,0.29310438,85097.0,85096.0,0.0458]
[1743555016704,0.36942581,85097.0,85096.0,0.0458]
[1743555017093,0.37042581,85097.0,85096.0,0.0458]
[1743555017497,0.38370848,85097.0,85096.0,0.0458]
[1743555019708,0.38374153,85097.0,85096.0,0.0458]
[1743555021007,0.0587648,85092.0,85088.0,0.0427]
[1743555021208,0.1175416,85083.0,85082.0,0.0427]
[1743555021410,0.13388899,85083.0,85082.0,0.04394]
[1743555021712,0.16944075,85083.0,85082.0,0.04394]
[1743555022012,0.15433337,85083.0,85082.0,0.04394]
[1743555022312,0.19723337,85083.0,85082.0,0.161483]
[1743555022509,0.18593796,85083.0,85082.0,0.161483]
[1743555023507,0.18593796,85083.0,85082.0,0.162483]
[1743555023899,0.18593796,85083.0,85082.0,0.04694]
[1743555023900,0.1706944,85083.0,85082.0,0.04694]
[1743555024104,0.18576536,85083.0,85082.0,0.04694]
[1743555024304,0.18576536,85083.0,85082.0,0.08914]
[1743555024510,0.18576536,85083.0,85082.0,0.206683]
[1743555025613,0.20109197,85083.0,85082.0,0.206683]
[1743555027118,0.18602101,85083.0,85082.0,0.206683]
[1743555028616,0.23112101,85083.0,85082.0,0.206683]
[1743555028815,0.18602101,85083.0,85082.0,0.206683]
[1743555029214,0.02557941,85083.0,85082.0,0.206683]
[1743555029417,0.0243394,85083.0,85082.0,0.206683]
[1743555030216,0.12654629,85089.0,85088.0,0.1175347]
[1743555030418,0.1277463,85089.0,85088.0,0.4789347]
[1743555030807,0.1716463,85089.0,85088.0,0.4789347]
[1743555031115,0.1716463,85089.0,85088.0,0.6102347]
[1743555033114,0.29488279,85089.0,85088.0,0.0006]
[1743555033309,0.1763091,85087.0,85086.0,0.1175347]
[1743555033513,0.17750911,85087.0,85086.0,0.1181347]
[1743555033713,0.3007456,85087.0,85086.0,0.1181347]
[1743555033913,0.35305839,85087.0,85086.0,0.1632347]